Cogmind - Beta 16.1 @@@ ROGUE MODE // 2026.02.25 @ 20:53:03 Player: Minty Result: Escaped! Performance ------------- Evolutions (9) 4500 Regions Visited (21) 4200 Robots Destroyed (332) 1660 Value Destroyed (12669) 12669 Prototype IDs (82) 1640 Alien Tech Used (2) 400 Bonus (14475) 14475 TOTAL SCORE: 39544 Bonus ------- High Alert Combat Kills 4171 Follower Combat Kills 177 Met Zhirov 300 Met Warlord at Base 500 MAIN.C Attacked Warlord 500 Met Warlord at Research 2000 Acquired SGEMP 2000 Delivered SGEMP 2000 Win 3000 Friendly Fire -173 Cogmind --------- Core Integrity 861/1600 Matter 66/300 Energy 84/100 System Corruption 5% Temperature Cool (0) Movement Core (50) Location To Epsilon Eridani Parts ------- > --- POWER (2) -------- (None) > --- PROPULSION (9) --- (None) > --- UTILITY (9) ------ Experimental Optical Array Advanced Signal Interpreter Advanced Target Analyzer Hacking Suite > --- WEAPON (5) ------- (None) > --- INVENTORY (5) ---- (None) Peak State ------------ > --- POWER ------------ Light Antimatter Reactor Improved Quantum Reactor > --- PROPULSION ------- Xenon Bombardment Thruster Electron Diverter Improved Diametric Drive Impulse Thruster Array Impulse Thruster Array Impulse Thruster Array > --- UTILITY ---------- Experimental Power Amplifier Experimental Optical Array Advanced Signal Interpreter Advanced Phase Shifter SHELL Armor Experimental Shock Absorption System Hacking Suite > --- WEAPON ----------- Nanosword Kinetic Spear > --- INVENTORY -------- Quantum Reactor Improved Quantum Reactor Vortex Driver Fusion Bomb Launcher Hellfire Missile Launcher [Rating: 181] Favorites ----------- Power Improved Ion Engine Engine Improved Ion Engine Power Core Light Nuclear Core Reactor Fusion Reactor Propulsion Biomechanical Wings Treads Light Treads Leg Aluminum Leg Wheel Wheel Hover Unit Improved Airjet Flight Unit Biomechanical Wings Utility Small Storage Unit Device Improved Heat Sink Storage Small Storage Unit Processor Core Analyzer Hackware Advanced Hacking Suite Protection Hardened Light Armor Plating Weapon Gauss Rifle Energy Gun Advanced Beam Rifle Energy Cannon Vortex Driver Ballistic Gun Gauss Rifle Ballistic Cannon Heavy Flak Cannon Launcher Scatter Rocket Array Special Weapon Multitool Impact Weapon Great Maul Slashing Weapon Nanosword Piercing Weapon Kinetic Spear Build | -11 -10 -10 -10 -8 -8 -7 -6 -5 -5 -5 -5 -4 -4 -4 -4 -4 -3 -3 -2 -2 -1 ------- Run | Yrd Mat Min Sub Mat Sto Fac Fac Fac Upp Upp War Pro Fac Upp Upp Zhi Pro Res Res Tes Acc Slots Evolved 18 | . . . . 4 . 2 2 2 . . . . 2 . . . . 2 2 . 2 Power 1 | . . . . . . . . 1 . . . . . . . . . . . . . Propulsion 7 | . . . . . . . 2 1 . . . . 2 . . . . . 1 . 1 Utility 7 | . . . . 1 . 2 . . . . . . . . . . . 2 1 . 1 Weapon 3 | . . . . 3 . . . . . . . . . . . . . . . . . Parts Attached 244 | . 8 2 13 24 26 38 17 4 2 . 10 2 3 . 2 4 4 36 12 15 22 Power 28 | . . 1 2 2 3 4 2 . . . 3 . 1 . . 1 . 3 1 . 5 Engine 15 | . . 1 2 1 3 3 2 . . . 2 . . . . . . . . . 1 Core 3 | . . . . 1 . 1 . . . . . . . . . . . 1 . . . Reactor 10 | . . . . . . . . . . . 1 . 1 . . 1 . 2 1 . 4 Propulsion 50 | . 2 . . 7 2 13 2 1 . . 2 . . . . . 1 5 2 3 10 Treads 7 | . 2 . . 4 1 . . . . . . . . . . . . . . . . Leg 4 | . . . . 1 . 3 . . . . . . . . . . . . . . . Wheel 2 | . . . . 2 . . . . . . . . . . . . . . . . . Hover 5 | . . . . . 1 4 . . . . . . . . . . . . . . . Flight 32 | . . . . . . 6 2 1 . . 2 . . . . . 1 5 2 3 10 Utility 84 | . 1 . 2 8 7 9 8 . 1 . 4 1 . . 1 3 2 18 4 9 6 Device 46 | . . . . . 6 6 2 . . . 3 1 . . 1 2 1 9 3 8 4 Storage 9 | . . . . 2 . 2 3 . 1 . . . . . . . . . 1 . . Processor 15 | . . . . 4 1 1 3 . . . . . . . . . . 5 . . 1 Hackware 6 | . . . . 1 . . . . . . 1 . . . . . . 3 . . 1 Protection 8 | . 1 . 2 1 . . . . . . . . . . . 1 1 1 . 1 . Artifact . | . . . . . . . . . . . . . . . . . . . . . . Weapon 82 | . 5 1 9 7 14 12 5 3 1 . 1 1 2 . 1 . 1 10 5 3 1 Energy Gun 21 | . . . 2 2 8 5 . . . . . 1 2 . . . . 1 . . . Energy Cannon 5 | . . . . . . 1 . . . . 1 . . . . . . 1 1 1 . Ballistic Gun 29 | . 5 1 6 5 2 4 3 1 1 . . . . . 1 . . . . . . Ballistic Cannon 3 | . . . . . . 1 2 . . . . . . . . . . . . . . Launcher 13 | . . . . . 3 . . 1 . . . . . . . . . 4 3 1 1 Special Weapon 1 | . . . . . . 1 . . . . . . . . . . . . . . . Impact Weapon 1 | . . . . . . . . 1 . . . . . . . . . . . . . Slashing Weapon 6 | . . . 1 . 1 . . . . . . . . . . . . 2 1 1 . Piercing Weapon 3 | . . . . . . . . . . . . . . . . . 1 2 . . . Special Melee Weapon . | . . . . . . . . . . . . . . . . . . . . . . Unidentified Prototypes 56 | . . . . 2 7 8 . . . . 5 . 2 . . 4 1 11 5 7 4 Parts Lost 79 | . . . 9 4 12 9 1 . . 4 . . 1 . . . . 4 3 7 25 Power 13 | . . . 2 2 2 1 1 . . 1 . . . . . . . . . . 4 Propulsion 25 | . . . 2 . 2 3 . . . . . . 1 . . . . . 2 2 13 Utility 21 | . . . 2 2 2 2 . . . 1 . . . . . . . 4 . 4 4 Weapon 20 | . . . 3 . 6 3 . . . 2 . . . . . . . . 1 1 4 Highest Loss Streak 20 | . . . 5 1 4 5 1 . . 3 . . 1 . . . . 2 2 4 20 To Critical Strikes . | . . . . . . . . . . . . . . . . . . . . . . Average Backups 7 | . 7 8 7 12 9 7 7 7 8 7 7 8 7 8 8 7 8 5 4 3 3 Power . | . . . . . . . . . . . . 1 1 1 1 1 . . . . . Propulsion . | . 2 . . 2 . 3 1 . . . . 2 . . . . . . . . . Utility 1 | . . 2 1 4 3 . 1 1 3 2 2 2 2 2 2 2 3 . . . . Weapon 3 | . 2 6 5 4 3 1 4 4 4 3 3 2 2 4 3 3 3 3 4 3 2 Tool/Special . | . . . . . . . . . . . . . . . . . . . . . . Unused Backups 27 | . 8 3 . 7 1 2 . 2 . . 1 . . . . . . . . 1 2 Power 5 | . 2 2 . . . . . . . . . . . . . . . . . . 1 Propulsion 6 | . 2 . . 3 . . . . . . . . . . . . . . . 1 . Utility 8 | . . 1 . 4 . 1 . 1 . . . . . . . . . . . . 1 Weapon 7 | . 4 . . . 1 . . 1 . . 1 . . . . . . . . . . Tool/Special 1 | . . . . . . 1 . . . . . . . . . . . . . . . Average Slot Usage (%) 84 | . 88 100 82 85 93 94 77 86 82 66 70 76 78 69 70 70 75 83 85 78 68 Engine 6 | . 14 14 10 3 8 6 5 5 5 . 6 11 5 . . . . . . . 1 Reactor 1 | . . . . . . . . . . . 1 . 5 10 10 10 10 8 8 7 4 Treads 9 | . 7 28 21 8 14 . . . . . . . . . . . . . . . . Leg 2 | . 20 . . . . 11 . . . . . . . . . . . . . . . Flight 9 | . . . . . . 1 25 29 29 29 29 29 32 31 31 31 34 33 30 27 26 Device 6 | . . . . . 8 21 4 5 5 4 1 7 9 10 12 15 12 13 12 10 7 Storage 8 | . 14 14 14 8 9 7 9 5 5 5 5 5 5 5 5 5 5 . . 4 1 Processor 6 | . . . . 10 9 6 13 17 17 17 15 8 5 5 5 5 5 7 8 8 8 Hackware 1 | . . . . 1 . . . . . . 2 5 5 5 2 . . 5 7 4 4 Protection 3 | . 3 14 8 2 . . . . . . . . . . . . 2 4 4 2 3 Energy Gun 4 | . . . 5 . 16 7 . . . . . . 7 . . . . . . . . Ballistic Gun 15 | . 28 28 15 37 23 20 10 18 5 1 1 . . . . . . . . . . Slashing Weapon 3 | . . . 4 2 . 5 5 . . . . . . . . . . 3 5 6 3 Peak Build Rating 181 | . 13 12 14 45 39 52 64 74 67 68 82 86 106 92 96 95 98 144 172 165 181 Average Rating 52 | . 8 11 11 34 34 43 51 68 66 55 65 79 95 90 89 88 92 121 150 147 157 On Entrance 66 | 6 6 12 12 6 39 33 27 59 66 67 49 82 86 90 92 87 88 98 141 165 148 Avg Prop Armor Cover (%) 5 | . . . . . . . . . . 5 5 . . . . . . . . . . Naked Turns . | . . . . . . . . . . . . . . . . . . . . . . Heaviest Build 125 | 12 21 23 23 125 39 46 24 34 30 30 30 30 43 38 41 43 42 47 58 58 74 Greatest Support 75 | 20 40 40 40 42 42 22 24 30 30 30 32 32 44 38 38 38 42 53 62 59 75 Greatest Overweight (x) 9 | . . . 4 9 1 8 . 1 . . . . . . 1 1 . . . . 1 Average Overweight (x) . | . . . . 2 . 1 . . . . . . . . . . . . . . . Largest Inventory Capacity 25 | . 8 8 8 25 10 10 8 8 8 8 8 8 8 8 8 8 8 8 5 5 5 Average Capacity 8 | . 8 8 8 19 10 8 8 8 8 8 8 8 8 8 8 8 8 5 5 5 5 Most Carried 25 | . 8 8 8 25 10 9 8 8 8 8 8 8 8 8 8 8 8 8 5 5 5 Average Carried 7 | . 7 8 7 14 9 7 7 7 8 7 7 8 7 7 7 7 7 4 4 4 3 Final Capacity 10 | 8 8 8 8 10 10 8 8 8 8 8 8 8 8 8 8 8 8 5 5 5 5 Final Carried 10 | 6 8 8 8 10 10 8 8 8 8 8 8 8 8 8 8 8 8 5 5 5 . Class Distribution -------------------- 37% | Mutant 15% | Scavenger-Gunner 15% | Gunner 9% | Sprinter 8% | Scout 3% | Hacker-Scout Dominant Class ---------------- Mutant | -10/Materials Mutant | -10/Mines Mutant | -10/Subcaves Gunner | -8/Materials Gunner | -8/Storage Scavenger-Gunner | -7/Factory Sprinter | -6/Factory Scout | -5/Factory Scout | -5/Upper Caves Scout | -5/Upper Caves Sprinter | -5/Warlord Sprinter | -4/Proximity Caves Sprinter | -4/Factory Sprinter | -4/Upper Caves Sprinter | -4/Upper Caves Mutant | -4/Zhirov Sprinter | -3/Proximity Caves Hacker-Scout | -3/Research Hacker-Ninja | -2/Research Scavenger-Ninja | -2/Testing Scout | -1/Access Resources | -11 -10 -10 -10 -8 -8 -7 -6 -5 -5 -5 -5 -4 -4 -4 -4 -4 -3 -3 -2 -2 -1 ----------- Run | Yrd Mat Min Sub Mat Sto Fac Fac Fac Upp Upp War Pro Fac Upp Upp Zhi Pro Res Res Tes Acc Matter Collected 8371 | 165 81 448 426 871 1361 1120 221 301 103 53 . 78 73 239 60 233 137 659 331 446 965 Remotely 30 | . . . . . . . . . . . . . . . . . . . . 30 . Salvage Created 12936 | . 78 234 380 1150 3354 1981 559 232 96 170 . 103 98 . 30 233 311 1413 629 282 1603 Parts 651 | . 6 11 38 65 183 86 16 18 8 7 . 2 5 . 2 9 7 72 20 11 85 Haulers Intercepted 20 | . . . . 3 6 4 1 . . . . . . . . . 1 2 2 . 1 Recyclers Shooed 9 | . . 2 . 1 2 1 1 . . . . . . . . . . 2 . . . Parts Field Recycled . | . . . . . . . . . . . . . . . . . . . . . . Retrieved Matter . | . . . . . . . . . . . . . . . . . . . . . . Parts Self-Destructed 49 | . . . 24 . . . . . 9 4 . . . 2 2 7 1 . . . . Prevented 9 | . . . . . . . . . 4 . . . . . 5 . . . . . . Parts Restored . | . . . . . . . . . . . . . . . . . . . . . . Kills | -11 -10 -10 -10 -8 -8 -7 -6 -5 -5 -5 -5 -4 -4 -4 -4 -4 -3 -3 -2 -2 -1 ------- Run | Yrd Mat Min Sub Mat Sto Fac Fac Fac Upp Upp War Pro Fac Upp Upp Zhi Pro Res Res Tes Acc Combat Hostiles Destroyed 229 | . 4 5 13 16 54 35 5 5 9 6 . 3 2 . 1 . 5 16 8 3 39 Melee 30 | . . . 4 . . 5 3 . . 1 . . . . . . . 4 3 1 9 Guns 107 | . 4 5 9 16 49 19 2 1 1 . . . . . 1 . . . . . . Cannons 3 | . . . . . . . . . . . . . . . . . . . . 1 2 AOE 88 | . . . . . 5 11 . 4 8 4 . 3 2 . . . 5 12 5 1 28 Classes Destroyed 23 | . 2 1 2 5 5 4 . . . 2 . . . . . . . 1 . 1 . Worker 30 | . . . . 5 4 5 2 . . . . . . . . . . 8 4 . 2 Builder 14 | . . . . . . 1 1 1 . . . . . . . . . 4 . 1 6 Tunneler 4 | . . . . . . 2 . . . . . . . . . . . . . . 2 Hauler 20 | . . . . 3 6 4 1 . . . . . . . . . 1 2 2 . 1 Recycler 18 | . . . . 2 5 5 1 1 . . . . . . . . . 1 . 1 2 Minesweeper 1 | . . . . . . . . . . 1 . . . . . . . . . . . Mechanic 5 | . . . . . 1 2 . . . . . . . . . . . 2 . . . Operator 5 | . . . . . 2 . . . . . . . . . . . . . 1 1 1 Watcher 6 | . . . . . 1 . 1 . . . . . . . . . . 3 . . 1 Swarmer 56 | . 3 . 6 2 4 5 . 4 9 4 . . . . 1 . . 3 4 . 11 Cutter 6 | . . . . . . . . . . . . . . . . . . 3 . . 3 Grunt 95 | . 1 4 . 8 32 14 5 . . . . 3 . . . . 5 8 2 . 13 Brawler 6 | . . . . 2 3 . . . . . . . . . . . . . . . 1 Duelist 2 | . . . . . 1 1 . . . . . . . . . . . . . . . Protector 3 | . . . . . 1 2 . . . . . . . . . . . . . . . Sentry 24 | . . 1 1 3 13 2 . 1 . . . . . . . . . . 2 . 1 Specialist 3 | . . . . . . 3 . . . . . . . . . . . . . . . Hunter 11 | . . . . 1 . 3 . . . . . . . . . . . 2 . . 5 Programmer 16 | . . . . . . 5 . . . 2 . . 2 . . . . . . 2 5 Striker 1 | . . . . . . . . . . . . . . . . . . . . 1 . Artisan 2 | . . . 2 . . . . . . . . . . . . . . . . . . Subdweller 6 | . . . 6 . . . . . . . . . . . . . . . . . . Decomposer 1 | . . . . . . . . . . 1 . . . . . . . . . . . Tinkerer 1 | . . . . . . . . . . 1 . . . . . . . . . . . Best Kill Streak 14 | . 3 2 4 6 9 13 4 4 9 6 . 3 2 . 1 . 6 9 9 3 14 Combat Bots Only 12 | . 3 2 4 3 5 10 2 4 9 6 . 3 2 . 1 . 5 9 6 1 12 Max Kills in Single Turn 11 | . 2 1 1 2 4 11 1 4 4 4 . 2 2 . 1 . 6 4 5 1 5 Gunslinging 1 | . 1 . . 1 1 1 . . . . . . . . . . . . . . . Exploded 9 | . . . . . 4 9 . 4 4 4 . 2 2 . . . 5 3 3 1 4 Melee 1 | . . . 1 . . 1 1 . . 1 . . . . . . . 1 1 1 1 Uniques/NPCs Destroyed . | . . . . . . . . . . . . . . . . . . . . . . Combat | -11 -10 -10 -10 -8 -8 -7 -6 -5 -5 -5 -5 -4 -4 -4 -4 -4 -3 -3 -2 -2 -1 -------- Run | Yrd Mat Min Sub Mat Sto Fac Fac Fac Upp Upp War Pro Fac Upp Upp Zhi Pro Res Res Tes Acc Hostile Shots Fired 1337 | . 13 29 89 87 155 185 41 14 16 44 . 8 29 12 46 . 2 143 31 53 340 Missed 591 | . 2 6 29 25 40 76 20 4 3 19 . 5 21 12 37 . 1 94 20 23 154 Hits 746 | . 11 23 60 62 115 109 21 10 13 25 . 3 8 . 9 . 1 49 11 30 186 Melee 15 | . . . . 1 2 1 . . . . . . . . . . . 2 . 3 6 Projectile 731 | . 11 23 60 61 113 108 21 10 13 25 . 3 8 . 9 . 1 47 11 27 180 AOE 3 | . . . . . . . . . . . . . . . . . . 2 . . 1 Critical Strikes 36 | . . . 1 1 8 3 3 1 . 1 . . 1 . . . . 2 . 4 11 Actively Blocked 4 | . . . . . . . . . . . . . . . . . . 2 . 2 . Part Disruptions 1 | . . . . . . . . . . 1 . . . . . . . . . . . Damage Taken 15316 | . 94 310 1128 783 2239 1762 398 194 210 481 38 54 118 . 133 . 10 1034 353 862 5115 Core 2703 | . 6 57 172 147 323 278 57 65 48 237 24 . 37 . . . . 157 125 231 739 Absorbed by Shields 19 | . . . . . . . . . . . . . . . . . . 19 . . . Redirected to Shielding 223 | . . . . . . . . . . . . . . . . . . 143 . 80 . Ignored by Resistances 169 | . . . . . . . . . . . . 29 19 . 28 . 10 83 . . . Regen/Repaired (Parts) 1737 | . . . . 119 131 15 112 . . . 54 . . . . . . 163 . 102 1041 Core Remaining (%) 63 | 100 . . 6 . 14 60 93 . . . . 62 . . . . 96 80 . 75 53 Volleys Fired 360 | . 11 20 45 34 92 39 5 8 6 2 1 2 1 . 5 17 1 10 2 14 45 Largest 5 | . 2 2 2 5 5 5 3 4 1 2 1 1 2 . 1 1 1 1 1 1 3 Hottest 293 | . 40 46 120 140 288 293 75 105 39 83 100 50 145 . 80 80 50 52 60 100 212 Shots Fired 980 | . 22 40 79 159 375 149 15 26 6 3 1 2 2 . 5 17 1 10 2 13 53 Gun 866 | . 22 40 79 159 369 147 15 25 1 1 . . 2 . 3 3 . . . . . Cannon 28 | . . . . . . . . . . . 1 . . . . . . . . 9 18 Launcher 70 | . . . . . 6 2 . 1 5 2 . 2 . . . . 1 10 2 4 35 Special 16 | . . . . . . . . . . . . . . . 2 14 . . . . . Kinetic 644 | . 22 40 67 159 230 84 15 25 1 1 . . . . . . . . . . . Thermal 231 | . . . 12 . 137 59 . . . . . . 1 . 5 17 . . . . . Explosive 70 | . . . . . 6 2 . 1 5 2 . 2 . . . . 1 10 2 4 35 Electromagnetic 7 | . . . . . 2 4 . . . . . . 1 . . . . . . . . Entropic 28 | . . . . . . . . . . . 1 . . . . . . . . 9 18 Robot Hit Streak 17 | . 5 15 13 11 13 17 6 5 1 1 . 1 1 . 3 10 3 8 10 2 9 Robot Miss Streak 26 | . 3 3 5 5 5 13 3 11 2 8 . 26 2 . 1 2 3 7 . 3 4 Penetration Max 1 | . . . . 1 1 . . . . . . . . . . . . . . 1 1 Secondary Targets 25 | . 1 . . 2 13 8 1 . . . . . . . . . . . . . . Max Gunslinging Chain 2 | . 1 . . 1 2 1 1 . . . . . . . . . . . . . . Shots Hit Robots 728 | . 11 30 55 71 204 118 40 14 2 11 . 1 1 . 4 14 1 48 23 15 65 Core Hits 654 | . 6 10 26 37 129 151 18 14 16 11 . 17 2 . 3 5 26 61 17 7 98 Critical Kills 3 | . . . . 2 1 . . . . . . . . . . . . . . . . Critical Parts Destroyed 6 | . . . . 3 1 . . . . 2 . . . . . . . . . . . Critical Strikes 33 | . . . 1 5 7 5 2 . . 2 . . . . . . . . 3 2 6 Burn 6 | . . . . . 5 1 . . . . . . . . . . . . . . . Destroy 7 | . . . . 5 2 . . . . . . . . . . . . . . . . Smash 2 | . . . . . . . . . . 2 . . . . . . . . . . . Sever 9 | . . . 1 . . 4 2 . . . . . . . . . . . 2 . . Impale 2 | . . . . . . . . . . . . . . . . . . . 1 . 1 Sunder 7 | . . . . . . . . . . . . . . . . . . . . 2 5 Melee Attacks 310 | . . . 22 3 1 27 32 . . 11 1 . . . . . . 84 35 23 71 Impact 12 | . . . . . . . . . . 11 1 . . . . . . . . . . Slashing 210 | . . . 22 3 1 27 32 . . . . . . . . . . 57 25 19 24 Piercing 88 | . . . . . . . . . . . . . . . . . . 27 10 4 47 Sneak Attacks 56 | . . . . . . 7 7 . . 3 . . . . . . . 18 7 3 11 Combat Hostiles 6 | . . . . . . 1 . . . . . . . . . . . 1 1 . 3 Follow-up Attacks 11 | . . . . . . . . . . . . . . . . . . 1 3 . 7 Damage Inflicted 40917 | . 121 477 885 1546 5055 5400 1251 500 661 958 . 451 240 . 62 163 808 6016 2961 1887 11475 Guns 9636 | . 117 460 680 1521 4360 1788 246 271 28 . . . 30 . 48 87 . . . . . Cannons 1295 | . . . . . . . . . . . . . . . . . . . . 424 871 Explosions 18410 | . . . . . 612 2801 . 229 633 327 . 451 210 . . . 808 2449 984 551 8355 Melee 11386 | . . . 205 . 29 811 1005 . . 631 . . . . . . . 3567 1977 912 2249 Ramming 100 | . 4 17 . 25 54 . . . . . . . . . . . . . . . . Kinetic 7048 | . 117 460 680 1521 2628 1097 246 271 28 . . . . . . . . . . . . Thermal 4848 | . . . . . 1723 2660 . . . . . . 240 . 62 163 . . . . . Explosive 16178 | . . . . . 579 812 . 229 633 327 . 451 . . . . 808 2449 984 551 8355 Electromagnetic 62 | . . . . . 42 20 . . . . . . . . . . . . . . . Impact 654 | . . . . . . . . . . 631 . . . . . . . . . . 23 Slashing 8603 | . . . 205 . 29 811 1005 . . . . . . . . . . 2991 1699 912 951 Piercing 2152 | . . . . . . . . . . . . . . . . . . 576 278 . 1298 Entropic 1272 | . . . . . . . . . . . . . . . . . . . . 424 848 Highest Corruption 10 | . . . . 2 10 3 . . . 4 4 . . . . . . 1 2 5 5 Average Corruption 3 | . . . . 1 5 2 . . . 3 4 . . . . . . 1 2 4 3 Corruption Purged . | . . . . . . . . . . . . . . . . . . . . . . Corruption Blocked . | . . . . . . . . . . . . . . . . . . . . . . Effects 65 | . . . . 5 38 7 . . . 2 . . . . . . . . . 8 5 Message Errors 17 | . . . . . 10 1 . . . 2 . . . . . . . . . 3 1 Matter Fused 14 | . . . . 1 10 . . . . . . . . . . . . . . 3 . Heat Flow Errors 6 | . . . . 1 3 1 . . . . . . . . . . . . . . 1 Energy Discharges 8 | . . . . 1 5 1 . . . . . . . . . . . . . . 1 Parts Rejected 1 | . . . . 1 . . . . . . . . . . . . . . . . . Parts Fused 2 | . . . . 1 . . . . . . . . . . . . . . . . 1 Data Loss (minor) 5 | . . . . . 3 2 . . . . . . . . . . . . . . . Data Loss (major) 2 | . . . . . 1 . . . . . . . . . . . . . . . 1 Misfires 2 | . . . . . 1 1 . . . . . . . . . . . . . . . Alerts 3 | . . . . . 1 1 . . . . . . . . . . . . . 1 . Weapon Failures 5 | . . . . . 4 . . . . . . . . . . . . . . 1 . Overload Shots . | . . . . . . . . . . . . . . . . . . . . . . Overflow Damage 3537 | . . . . . . 379 99 . 23 433 . . 67 . . 5 1 885 205 541 899 Projectiles 188 | . . . . . . . . . . . . . . . . 5 . . . 89 94 Explosions 918 | . . . . . . 311 . . 23 . . . 67 . . . 1 7 23 62 424 Melee 2431 | . . . . . . 68 99 . . 433 . . . . . . . 878 182 390 381 Knockbacks 6 | . . 1 . . 1 . . . . 3 . . . . . . . . . . 1 Impact 6 | . . 1 . . 1 . . . . 3 . . . . . . . . . . 1 Kinetic . | . . . . . . . . . . . . . . . . . . . . . . Secondary . | . . . . . . . . . . . . . . . . . . . . . . Self-Inflicted Damage 811 | . . . . . 72 358 . . . 41 . 27 . . . . . . . . 313 Shots 23 | . . . . . 4 12 . . . 2 . 1 . . . . . . . . 4 Rammed 16 | . . 4 . 3 9 . . . . . . . . . . . . . . . . Targets Rammed 18 | . 1 4 . 4 9 . . . . . . . . . . . . . . . . Kicked 1 | . 1 . . . . . . . . . . . . . . . . . . . . Crushed 1 | . . . . 1 . . . . . . . . . . . . . . . . . Highest Temperature 507 | . 6 192 30 476 507 170 21 12 . . 197 44 90 . 126 162 . 214 140 174 198 Average Temperature 83 | . 6 83 16 149 135 54 7 5 . . 74 23 40 . 64 89 . 49 50 37 29 Received Heat Transfer 2874 | . 18 165 231 243 918 468 243 36 9 . . 30 21 . 18 . 9 150 45 36 234 Effects 15 | . . . . 6 9 . . . . . . . . . . . . . . . . Shutdowns 3 | . . . . 1 2 . . . . . . . . . . . . . . . . Energy Bleed 1 | . . . . . 1 . . . . . . . . . . . . . . . . Interference 3 | . . . . . 3 . . . . . . . . . . . . . . . . Damage (minor) 3 | . . . . 1 2 . . . . . . . . . . . . . . . . Damage (major) 5 | . . . . 4 1 . . . . . . . . . . . . . . . . Siege Activations . | . . . . . . . . . . . . . . . . . . . . . . Martial Activations . | . . . . . . . . . . . . . . . . . . . . . . Shielding Activations . | . . . . . . . . . . . . . . . . . . . . . . Robots Disrupted 1 | . . . . . . . . . . . . . . . 1 . . . . . . Combat Hostiles . | . . . . . . . . . . . . . . . . . . . . . . Robots Corrupted 2 | . . . . . . . . . . 2 . . . . . . . . . . . Combat Hostiles 1 | . . . . . . . . . . 1 . . . . . . . . . . . Parts Fried 2 | . . . . . . . . . . 2 . . . . . . . . . . . Impact Corruptions 19 | . . . . . . . . . . 18 . . . . . . . . . . 1 Robots Melted . | . . . . . . . . . . . . . . . . . . . . . . Combat Hostiles . | . . . . . . . . . . . . . . . . . . . . . . Parts Melted 7 | . . . . . 4 2 . . . . . . . . 1 . . . . . . Heat Transferred 6564 | . . . . . 3367 2550 . . . . . . 137 . 124 386 . . . . . Parts Sabotaged . | . . . . . . . . . . . . . . . . . . . . . . Parts Stolen . | . . . . . . . . . . . . . . . . . . . . . . Parts Stripped . | . . . . . . . . . . . . . . . . . . . . . . Power Chain Reactions 1 | . . . . . 1 . . . . . . . . . . . . . . . . Alert | -11 -10 -10 -10 -8 -8 -7 -6 -5 -5 -5 -5 -4 -4 -4 -4 -4 -3 -3 -2 -2 -1 ------- Run | Yrd Mat Min Sub Mat Sto Fac Fac Fac Upp Upp War Pro Fac Upp Upp Zhi Pro Res Res Tes Acc Maximum Alert Level 5 | . . . . 1 3 4 2 2 . . . . 1 . . . . 3 4 4 5 Low Security (%) 27 | . 100 100 . 94 7 . . . . . . . 68 . . . . 40 . . . Level 1 6 | . . . . 5 10 . . 3 . . . . 31 . . . . 24 . . . Level 2 28 | . . . . . 34 47 100 96 . . . . . . . . . 20 53 . 2 Level 3 26 | . . . . . 47 45 . . . . . . . . . . . 15 10 95 7 Level 4 5 | . . . . . . 6 . . . . . . . . . . . . 35 4 22 Level 5 5 | . . . . . . . . . . . . . . . . . . . . . 67 High Security . | . . . . . . . . . . . . . . . . . . . . . . Max Security . | . . . . . . . . . . . . . . . . . . . . . . Peak Influence 3218 | . 66 55 . 215 1015 1170 591 471 . . . . 230 . . . . 1028 1401 1124 3218 Initial 763 | . . . . . 83 448 567 279 . . . . 31 . . . . 50 516 763 654 Average 621 | . 28 15 . 83 611 762 559 441 . . . . 106 . . . . 358 855 1016 1902 Influence Increases 11950 | . 120 135 225 536 1866 1371 144 302 215 145 . 70 249 45 125 5 105 1500 1042 708 3042 Destroy 0b10 Robot/C 4520 | . 80 100 140 320 1060 760 100 100 180 120 . 60 40 . 20 . 100 320 160 60 800 Destroy 0b10 Robot/NC 540 | . . . . 50 100 110 30 10 . 5 . . . . . 5 5 100 35 15 75 Destroy Leader 830 | . 10 20 10 86 234 118 14 20 20 20 . 10 10 . . . . 60 34 . 164 Allied During Kill 103 | . . . . . . 21 . . . . . . . . . . . . . . 82 Trap Triggered on 0b10 10 | . . . . . . . . . . . . . . . . . . . . . 10 Successful Hack 429 | . 30 . . . 22 16 . 62 . . . . 16 . . . . 128 8 111 36 Disable Machine 765 | . . . . 75 150 135 . 15 . . . . 45 . . . . 105 15 75 150 Anti-Garrison Action 550 | . . . . . 150 . . . . . . . . . . . . . 400 . . Destroy Structure 1473 | . . . . 5 75 91 . 50 . . . . 48 . . . . 232 90 192 690 Partial Spotted 600 | . . . . . . 15 . 15 . . . . . . . . . 210 45 150 165 Lose Combat Pursuer 2130 | . . 15 75 . 75 105 . 30 15 . . . 90 45 105 . . 345 255 105 870 Influence Decreases 8782 | . 120 126 234 337 1078 1199 732 412 222 187 412 20 69 126 89 190 30 657 602 975 965 Entered New Map 3993 | . . . 5 . 116 539 592 292 172 87 412 . 19 86 29 185 . 25 402 595 437 Time Decay 3284 | . 120 126 174 307 542 510 130 120 50 60 . 20 40 40 60 5 30 342 170 160 278 Search Patrol Dispatched 100 | . . . . . . . . . . . . . . . . . . 100 . . . Lost Part 745 | . . . 55 30 120 90 10 . . 40 . . 10 . . . . 40 30 70 250 Lost Ally 60 | . . . . . . 60 . . . . . . . . . . . . . . . Purge Threat 600 | . . . . . 300 . . . . . . . . . . . . 150 . 150 . Squads Dispatched 77 | . 2 . . 2 10 8 2 3 . . . . 4 . . . . 20 7 7 12 Investigation 36 | . 1 . . 1 3 1 2 2 . . . . 4 . . . . 9 4 4 5 Extermination 7 | . . . . . . 1 . . . . . . . . . . . 3 . 2 1 Reinforcement 19 | . 1 . . 1 2 1 . 1 . . . . . . . . . 5 3 1 4 Assault 7 | . . . . . 2 3 . . . . . . . . . . . . . . 2 Garrison 8 | . . . . . 3 2 . . . . . . . . . . . 3 . . . Intercept . | . . . . . . . . . . . . . . . . . . . . . . Searches Triggered 1 | . . . . . . . . . . . . . . . . . . 1 . . . Construction Impeded 2 | . . . . . 1 . . . . . . . . . . . . . . . 1 Haulers Reinforced 4 | . . . . . . 1 . . . . . . . . . . . 1 1 . 1 Active Scanning Responses . | . . . . . . . . . . . . . . . . . . . . . . Cargo Convoy Interrupts 1 | . . . . . . 1 . . . . . . . . . . . . . . . Stealth | -11 -10 -10 -10 -8 -8 -7 -6 -5 -5 -5 -5 -4 -4 -4 -4 -4 -3 -3 -2 -2 -1 --------- Run | Yrd Mat Min Sub Mat Sto Fac Fac Fac Upp Upp War Pro Fac Upp Upp Zhi Pro Res Res Tes Acc Distress Signals 20 | . . . . . 5 . 1 1 . . . . . . . . . 2 6 1 4 Communications Jammed . | . . . . . . . . . . . . . . . . . . . . . . Distress Signals . | . . . . . . . . . . . . . . . . . . . . . . Times Spotted 519 | . 7 9 24 18 73 53 9 16 11 14 . 2 20 6 23 . 5 70 28 14 117 Peak Tracking Total 25 | . 4 2 6 4 6 7 4 4 5 8 . 2 13 7 12 . 5 11 14 5 25 Tactical Retreats 64 | . . 1 3 . 4 5 . 2 1 . . . 2 1 6 . . 14 4 4 17 ECM-based Alert Blocks 20 | . . . . . . . . . . . . . . . 4 . . 15 . 1 . Traps | -11 -10 -10 -10 -8 -8 -7 -6 -5 -5 -5 -5 -4 -4 -4 -4 -4 -3 -3 -2 -2 -1 ------- Run | Yrd Mat Min Sub Mat Sto Fac Fac Fac Upp Upp War Pro Fac Upp Upp Zhi Pro Res Res Tes Acc Traps Triggered 8 | . . . 1 1 1 . . . . . 1 . . . . . . 4 . . . Indirectly . | . . . . . . . . . . . . . . . . . . . . . . Trap Hack Attempts . | . . . . . . . . . . . . . . . . . . . . . . Triggered . | . . . . . . . . . . . . . . . . . . . . . . Disarmed . | . . . . . . . . . . . . . . . . . . . . . . Reprogrammed 12 | . . . . . . . . . . . . . . . . . . . . 6 6 Reused 2 | . . . . . . . . . . 1 . . . . . . . . . . 1 Traps Extracted . | . . . . . . . . . . . . . . . . . . . . . . Installed 2 | . . . . . . . . . . 2 . . . . . . . . . . . Triggered 2 | . . . . . . . . . . 1 . . . . . . . . . . 1 Objects Rigged 3 | . . . . . . . . . . . . . 3 . . . . . . . . Exploded 1 | . . . . . . . . . . . . . 1 . . . . . . . . Machines | -11 -10 -10 -10 -8 -8 -7 -6 -5 -5 -5 -5 -4 -4 -4 -4 -4 -3 -3 -2 -2 -1 ---------- Run | Yrd Mat Min Sub Mat Sto Fac Fac Fac Upp Upp War Pro Fac Upp Upp Zhi Pro Res Res Tes Acc Machines Disabled 54 | . . . . 5 11 9 . 1 . 1 1 . 3 . . . . 7 1 5 10 Max in Single Turn 4 | . . . . 1 2 4 . 1 . 1 1 . 3 . . . . 1 1 1 1 Garrison Access 8 | . . . . . 1 1 . . . . . . . . . . . 1 3 . 2 Energy Cycler 1 | . . . . . . . . . . . . . . . . . . . . . 1 Machines Repaired . | . . . . . . . . . . . . . . . . . . . . . . Machines Dismantled . | . . . . . . . . . . . . . . . . . . . . . . Machines Sabotaged . | . . . . . . . . . . . . . . . . . . . . . . Overloaded Fab Kills . | . . . . . . . . . . . . . . . . . . . . . . Hacking | -11 -10 -10 -10 -8 -8 -7 -6 -5 -5 -5 -5 -4 -4 -4 -4 -4 -3 -3 -2 -2 -1 --------- Run | Yrd Mat Min Sub Mat Sto Fac Fac Fac Upp Upp War Pro Fac Upp Upp Zhi Pro Res Res Tes Acc Machines Accessed 88 | . 4 . 1 3 6 6 2 11 . . 5 . 5 . . 5 . 17 4 11 8 Terminals 49 | . 4 . . 1 5 2 1 7 . . . . 3 . . . . 11 1 8 6 Fabricators 6 | . . . . . . 1 . 3 . . . . . . . . . . 1 1 . Repair Stations 8 | . . . . 1 1 1 1 . . . . . . . . . . 3 . 1 . Recycling Units 3 | . . . . 1 . 1 . . . . . . 1 . . . . . . . . Scanalyzers 3 | . . . . . . . . 1 . . . . . . . . . 1 . 1 . Garrison Access 8 | . . . . . . 1 . . . . . . 1 . . . . 2 2 . 2 Total Hacks 224 | . 8 . 4 9 19 13 6 29 . . 8 . 19 . . 18 . 44 10 21 16 Successful 119 | . 4 . 4 5 8 6 2 16 . . 8 . 8 . . 18 . 17 4 14 5 Failed 105 | . 4 . . 4 11 7 4 13 . . . . 11 . . . . 27 6 7 11 Catastrophic 26 | . . . . 1 4 1 1 5 . . . . 5 . . . . 4 . 2 3 Database Lockouts . | . . . . . . . . . . . . . . . . . . . . . . Manual 69 | . 3 . . . 11 4 6 18 . . . . 4 . . . . 13 4 1 5 Terminals 131 | . 8 . . 3 17 5 4 19 . . . . 13 . . . . 30 3 16 13 Fabricators 12 | . . . . . . 3 . 5 . . . . . . . . . . 3 1 . Repair Stations 18 | . . . . 3 2 1 2 . . . . . . . . . . 9 . 1 . Recycling Units 10 | . . . . 3 . 3 . . . . . . 4 . . . . . . . . Scanalyzers 11 | . . . . . . . . 5 . . . . . . . . . 3 . 3 . Garrison Access 12 | . . . . . . 1 . . . . . . 2 . . . . 2 4 . 3 Terminal Hacks 72 | . 4 . 4 . 6 1 1 8 . . 8 . 6 . . 18 . 5 . 10 1 Record 18 | . . . 4 . . . . 2 . . 6 . . . . 6 . . . . . Part Schematic 7 | . . . . . . . . 1 . . . . 1 . . 4 . . . 1 . Robot Analysis 5 | . 1 . . . . . . . . . . . . . . 4 . . . . . Prototype ID Bank 10 | . 2 . . . . . . 1 . . . . 1 . . 4 . 1 . 1 . Open Door 5 | . . . . . 2 . . . . . 2 . . . . . . . . 1 . Branch Access Points 3 | . . . . . . 1 . 1 . . . . . . . . . . . 1 . Emergency Access Points 3 | . . . . . . . . 1 . . . . . . . . . . . 2 . Terminal Index 3 | . . . . . . . . . . . . . 1 . . . . 1 . 1 . Alert Level 6 | . . . . . 1 . 1 2 . . . . 1 . . . . 1 . . . Unreport Threat 4 | . . . . . 2 . . . . . . . . . . . . 1 . 1 . Locate Traps 2 | . . . . . . . . . . . . . 1 . . . . . . 1 . Reprogram Traps 2 | . . . . . . . . . . . . . . . . . . . . 1 1 Dispatch Records 1 | . . . . . . . . . . . . . . . . . . 1 . . . Patrol Status 1 | . . . . . . . . . . . . . 1 . . . . . . . . Hauler Manifests 1 | . . . . . 1 . . . . . . . . . . . . . . . . Zone Layout 1 | . 1 . . . . . . . . . . . . . . . . . . . . Fabricator Hacks 5 | . . . . . . . . 2 . . . . . . . . . . 2 1 . Network Status 1 | . . . . . . . . 1 . . . . . . . . . . . . . Load Schematic 1 | . . . . . . . . . . . . . . . . . . . 1 . . Build 3 | . . . . . . . . 1 . . . . . . . . . . 1 1 . Repair Station Hacks 5 | . . . . 2 . . . . . . . . . . . . . 3 . . . Scan Component 3 | . . . . 1 . . . . . . . . . . . . . 2 . . . Repair 2 | . . . . 1 . . . . . . . . . . . . . 1 . . . Recycling Unit Hacks 6 | . . . . 3 . 2 . . . . . . 1 . . . . . . . . Process 1 | . . . . 1 . . . . . . . . . . . . . . . . . Report Inventory 2 | . . . . 1 . 1 . . . . . . . . . . . . . . . Retrieve Matter 2 | . . . . 1 . . . . . . . . 1 . . . . . . . . Retrieve Components 1 | . . . . . . 1 . . . . . . . . . . . . . . . Scanalyzer 7 | . . . . . . . . 2 . . . . . . . . . 3 . 2 . Insert Component 1 | . . . . . . . . . . . . . . . . . . . . 1 . Retrieve Study 6 | . . . . . . . . 2 . . . . . . . . . 3 . 1 . Garrison Access Hacks 4 | . . . . . . 1 . . . . . . . . . . . 1 . . 2 Seal Access 4 | . . . . . . 1 . . . . . . . . . . . 1 . . 2 Unauthorized Hacks 20 | . . . . . 2 2 1 4 . . . . 1 . . . . 5 2 1 2 Terminals 10 | . . . . . 1 . . 2 . . . . 1 . . . . 4 . . 2 Track 5 | . . . . . . . . 1 . . . . . . . . . 3 . . 1 Assimilate 1 | . . . . . . . . 1 . . . . . . . . . . . . . Botnet 2 | . . . . . 1 . . . . . . . . . . . . 1 . . . Detonate 1 | . . . . . . . . . . . . . 1 . . . . . . . . Operators 1 | . . . . . . . . . . . . . . . . . . . . . 1 Fabricators 3 | . . . . . . 1 . 2 . . . . . . . . . . . . . Liberate 2 | . . . . . . 1 . 1 . . . . . . . . . . . . . Recompile 1 | . . . . . . . . 1 . . . . . . . . . . . . . Repair Stations 5 | . . . . . 1 1 1 . . . . . . . . . . 1 . 1 . Patch 5 | . . . . . 1 1 1 . . . . . . . . . . 1 . 1 . Recycling Units . | . . . . . . . . . . . . . . . . . . . . . . Scanalyzers . | . . . . . . . . . . . . . . . . . . . . . . Garrison Access 2 | . . . . . . . . . . . . . . . . . . . 2 . . Jam 2 | . . . . . . . . . . . . . . . . . . . 2 . . Data Cores Recovered 2 | . . . . . 1 . . . . . . . . . . . . . . 1 . Used 1 | . . . . . . . . . . . . . . . . . . . . 1 . Hacking Detections 66 | . 4 . . 3 5 4 2 9 . . . . 5 . . . . 15 4 9 6 Full Trace Events 27 | . 1 . . 1 3 . 1 1 . . . . 4 . . . . 7 2 3 4 Feedback Events 3 | . . . . 1 . . . . . . . . . . . . . 1 . 1 . Corruption 3 | . . . . 1 . . . . . . . . . . . . . 1 . 1 . Feedback Blocked . | . . . . . . . . . . . . . . . . . . . . . . Robot Schematics Acquired . | . . . . . . . . . . . . . . . . . . . . . . Robots Built 3 | . . . . . . . . 3 . . . . . . . . . . . . . Authchips . | . . . . . . . . . . . . . . . . . . . . . . Time 76 | . . . . . . . . 76 . . . . . . . . . . . . . Total Robot Build Rating 15 | . . . . . . . . 15 . . . . . . . . . . . . . Part Schematics Acquired 7 | . . . . . . . . 1 . . . . 1 . . 4 . . . 1 . Parts Built 2 | . . . . . . . . . . . . . . . . . . . 1 1 . Authchips . | . . . . . . . . . . . . . . . . . . . . . . Time 132 | . . . . . . . . . . . . . . . . . . . 58 74 . Total Part Build Rating 12 | . . . . . . . . . . . . . . . . . . . 3 9 . Part Studies Acquired 6 | . . . . . . . . 2 . . . . . . . . . 3 . 1 . Parts Repaired 2 | . . . . 1 . . . . . . . . . . . . . 1 . . . Time 84 | . . . . 44 . . . . . . . . . . . . . 40 . . . Parts Recycled . | . . . . . . . . . . . . . . . . . . . . . . Recycled Matter 199 | . . . . 199 . . . . . . . . . . . . . . . . . Retrieved Matter 228 | . . . . 228 . . . . . . . . . . . . . . . . . Retrieved Components 6 | . . . . . . 6 . . . . . . . . . . . . . . . Parts Scanalyzed 1 | . . . . . . . . . . . . . . . . . . . . 1 . Part Schematics Acquired . | . . . . . . . . . . . . . . . . . . . . . . Parts Damaged 1 | . . . . . . . . . . . . . . . . . . . . 1 . Bothacking | -11 -10 -10 -10 -8 -8 -7 -6 -5 -5 -5 -5 -4 -4 -4 -4 -4 -3 -3 -2 -2 -1 ------------ Run | Yrd Mat Min Sub Mat Sto Fac Fac Fac Upp Upp War Pro Fac Upp Upp Zhi Pro Res Res Tes Acc Used RIF Installer . | . . . . . . . . . . . . . . . . . . . . . . Robots Hacked . | . . . . . . . . . . . . . . . . . . . . . . Non-combat . | . . . . . . . . . . . . . . . . . . . . . . Combat . | . . . . . . . . . . . . . . . . . . . . . . Robot Hacks Applied . | . . . . . . . . . . . . . . . . . . . . . . Relay Couplers Released 8 | . . . . . 3 1 . . . . . . . . . . . . 4 . . Machine Destruction 8 | . . . . . 3 1 . . . . . . . . . . . . 4 . . Fabnet Peak Effective % . | . . . . . . . . . . . . . . . . . . . . . . Robots Rewired . | . . . . . . . . . . . . . . . . . . . . . . Allies Hacked . | . . . . . . . . . . . . . . . . . . . . . . Hacks Repelled . | . . . . . . . . . . . . . . . . . . . . . . Allies | -11 -10 -10 -10 -8 -8 -7 -6 -5 -5 -5 -5 -4 -4 -4 -4 -4 -3 -3 -2 -2 -1 -------- Run | Yrd Mat Min Sub Mat Sto Fac Fac Fac Upp Upp War Pro Fac Upp Upp Zhi Pro Res Res Tes Acc Total Allies 11 | . . . . . . 5 . 3 . . . . . . . . . . . . 3 Largest Group 3 | . . . . . . 3 . 3 . . . . . . . . . . . . 3 Highest-Rated Group 379 | . . . . . . 64 . 87 . . . . . . . . . . . . 379 Highest-Rated Ally 135 | . . . . . . 32 . 29 . . . . . . . . . . . . 135 Total Orders . | . . . . . . . . . . . . . . . . . . . . . . Ally Attacks 29 | . . . . . . 24 . . . . . . . . . . . . . . 5 Total Damage 503 | . . . . . . 471 . . . . . . . . . . . . . . 32 Kills 7 | . . . . . . 6 . . . . . . . . . . . . . . 1 Allies Corrupted . | . . . . . . . . . . . . . . . . . . . . . . Allies Melted . | . . . . . . . . . . . . . . . . . . . . . . Intel | -11 -10 -10 -10 -8 -8 -7 -6 -5 -5 -5 -5 -4 -4 -4 -4 -4 -3 -3 -2 -2 -1 ------- Run | Yrd Mat Min Sub Mat Sto Fac Fac Fac Upp Upp War Pro Fac Upp Upp Zhi Pro Res Res Tes Acc Active Infowar (turns) 3588 | . . . . . . . 195 256 105 131 238 104 90 85 136 99 72 774 351 334 618 Optics 3509 | . . . . . . . 116 256 105 131 238 104 90 85 136 99 72 774 351 334 618 Sensors 1228 | . . . . . . . . . . . . . . . . . . 261 351 288 328 Terrain 723 | . . . . . . . 195 256 105 98 . . . . . . . 69 . . . Structural 124 | . . . . . . . . . . . . . . . . . . 124 . . . Traps 82 | . . . . . . . . . . . . 41 41 . . . . . . . . Machine Analysis 7 | . . . . . . . . . . . . . . . . . . 7 . . . Cloaking 428 | . . . . . . . . . . . . . . . . . . 43 351 34 . Jamming 15 | . . . . . . . . . . . . . . . . . . 1 . 14 . ECM 203 | . . . . . . . . . . . . . . . 48 7 2 131 . 15 . Robot Analysis Total 5 | . 1 . . . . . . . . . . . . . . 4 . . . . . Derelict Logs Recovered 9 | . . 2 2 . . . . . . 1 . 1 . 1 2 . . . . . . Drone Launches . | . . . . . . . . . . . . . . . . . . . . . . Drone Recoveries . | . . . . . . . . . . . . . . . . . . . . . . Exploration | -11 -10 -10 -10 -8 -8 -7 -6 -5 -5 -5 -5 -4 -4 -4 -4 -4 -3 -3 -2 -2 -1 ------------- Run | Yrd Mat Min Sub Mat Sto Fac Fac Fac Upp Upp War Pro Fac Upp Upp Zhi Pro Res Res Tes Acc Turns Passed 11266 | . 325 437 3124 774 1546 1391 276 256 105 131 238 104 90 85 136 99 72 774 351 334 618 Spaces Moved 12962 | 1 203 233 1823 319 659 550 392 721 287 212 639 371 320 341 500 168 276 2051 769 667 1460 Core 436 | . . . 416 9 . 2 . . . . . . . . . . . . . . 9 Treads 2491 | . 49 233 1407 117 659 26 . . . . . . . . . . . . . . . Legs 610 | 1 154 . . 54 . 401 . . . . . . . . . . . . . . . Wheels 139 | . . . . 139 . . . . . . . . . . . . . . . . . Hover 6 | . . . . . . 6 . . . . . . . . . . . . . . . Flight 9280 | . . . . . . 115 392 721 287 212 639 371 320 341 500 168 276 2051 769 667 1451 Fastest Speed 8 | 120 120 160 150 80 145 37 31 28 28 28 24 24 19 21 21 21 18 17 14 16 8 Average Speed 62 | 120 129 160 159 168 174 173 31 28 28 34 28 24 20 21 21 26 18 17 16 18 19 Slowest Speed 450 | 120 160 160 250 325 225 450 31 93 28 37 37 24 21 21 87 87 21 21 19 22 93 Overloaded Moves 103 | . . . . . . . . . . . . . . . . . . . 7 32 64 Propulsion Burnouts . | . . . . . . . . . . . . . . . . . . . . . . Robots Hopped 62 | . . . . . . . 6 11 2 2 1 1 5 2 3 . . 3 5 4 17 Potential Cave-ins 30 | . . . . . . 25 . . . . . . . . . . 1 . . 2 2 Cave-ins Triggered 2 | . . . . . 2 . . . . . . . . . . . . . . . . Teleports 1 | . . . . . . . . . . . . . . . . . . 1 . . . Exploration Rate (%) 47 | 2 43 48 83 34 79 12 12 26 59 45 78 67 11 55 72 61 53 59 35 61 39 Regions Visited 21 Branch Regions 12 Pre-discovered Areas 8 | . . . 1 . . . . . . . 1 . . 1 2 3 . . . . . Known Exits Taken 5 | . . . . 1 . . . 1 . . . . . . . . . 1 1 1 . Unknown Exits Taken 16 | 1 1 1 1 . 1 1 1 . 1 1 1 1 1 1 1 1 1 . . . . Scrap Searched 23 | . . 2 5 . . . . . 5 2 . 2 . 3 2 . 2 . . . . Spaces Dug 47 | . . . 1 . . 1 . . . . . . . . . . . 13 7 5 20 Terrain Destroyed 1173 | . . . 1 3 73 119 . 25 80 100 1 52 38 . . . 54 129 32 147 319 Melee 44 | . . . 1 . . 1 . . . . . . . . . . . 13 7 5 17 Projectile 36 | . . . . 3 1 . . . . . 1 . . . . . . . . 12 19 AOE 1093 | . . . . . 72 118 . 25 80 100 . 52 38 . . . 54 116 25 130 283 Terrain Rammed . | . . . . . . . . . . . . . . . . . . . . . . Walls Destroyed . | . . . . . . . . . . . . . . . . . . . . . . Machines Disabled . | . . . . . . . . . . . . . . . . . . . . . . Actions | -11 -10 -10 -10 -8 -8 -7 -6 -5 -5 -5 -5 -4 -4 -4 -4 -4 -3 -3 -2 -2 -1 --------- Run | Yrd Mat Min Sub Mat Sto Fac Fac Fac Upp Upp War Pro Fac Upp Upp Zhi Pro Res Res Tes Acc Total 14876 | . 252 264 1944 457 835 853 478 745 303 241 689 377 339 352 520 199 291 2334 937 827 1639 Wait 612 | . 8 1 23 17 18 131 12 2 9 9 22 3 8 10 7 . 4 89 116 94 29 Move 12826 | . 202 232 1822 318 658 549 381 698 282 208 636 368 309 336 493 167 275 2044 760 659 1429 Hop 52 | . . . . . . . 4 11 2 1 1 1 5 2 3 . . 3 3 3 13 Pick Up 96 | . 11 1 4 21 7 15 . 5 . 2 5 . 2 2 1 1 2 7 1 3 6 Fast Attach 124 | . 1 . 7 14 8 13 13 4 1 . 1 1 2 . 1 1 2 24 8 10 13 Attach 80 | . 2 . 3 8 7 11 3 3 . 2 3 . 3 1 . 1 2 3 4 3 21 Detach 66 | . . . 3 6 3 12 4 4 . 2 1 . 3 . . 1 1 3 5 3 15 Swap 151 | . 5 3 6 14 23 25 2 1 1 . 10 2 2 . 2 10 3 24 5 7 6 Drop 167 | . 11 3 9 18 9 31 5 8 2 2 8 . 4 1 3 1 1 24 6 12 9 Fire 360 | . 11 20 45 34 92 39 5 8 6 2 1 2 1 . 5 17 1 10 2 14 45 Melee 275 | . . . 22 3 1 27 32 . . 11 1 . . . . . . 79 27 19 53 Ram . | . . . . . . . . . . . . . . . . . . . . . . Kick 1 | . 1 . . . . . . . . . . . . . . . . . . . . Crush 17 | . . 4 . 4 9 . . . . . . . . . . . . . . . . Escape Stasis 24 | . . . . . . . . . . . . . . . . . . 24 . . . Rewire 22 | . . . . . . . 17 . . . . . . . 5 . . . . . . Trap 2 | . . . . . . . . . . 2 . . . . . . . . . . . Miscellaneous 1 | . . . . . . . . 1 . . . . . . . . . . . . . Route ------- -11/Scrapyard -10/Materials (discovered 2 exits: [*Min x2]) -10/Mines -10/Subcaves (discovered 4 exits: *Mat x2 / [*Rec] / [*Scr]) -8/Materials -8/Storage (discovered 2 exits: *Fac / [*Rec]) -7/Factory (discovered 3 exits: *Fac / Low x2) -6/Factory -5/Factory (discovered 4 exits: *Upp x2 / *Ext x2) -5/Upper Caves -5/Upper Caves (discovered 2 exits: *Fac / *War) -5/Warlord -4/Proximity Caves -4/Factory -4/Upper Caves -4/Upper Caves (discovered 2 exits: *Res / *Zhi) -4/Zhirov -3/Proximity Caves -3/Research -2/Research (discovered 3 exits: *Acc x2 / *Tes) -2/Testing -1/Access (discovered 2 exits: *Sur / Com) To Epsilon Eridani History --------- Turn | Location | Event 1 | -11/Scrapyard | Discovered new exit (range 0) 1 | -11/Scrapyard | Entered Materials 35 | -10/Materials | Discovered new exit (range 12) 152 | -10/Materials | Discovered new exit (range 8) 323 | -10/Materials | Build established: Mutant 326 | -10/Materials | Entered Mines 327 | -10/Mines | Assembled infested the area 485 | -10/Mines | Learned Materials emergency access door positions 509 | -10/Mines | Joined a pair of Derelicts in attacking an 0b10 outpost 639 | -10/Mines | Learned Materials stockpile data 757 | -10/Mines | Discovered new exit (range 5) 763 | -10/Mines | Entered Subcaves 764 | -10/Subcaves | Approached by a straggling Scientist 782 | -10/Subcaves | A swath of the cavern ceiling suddenly collapsed 1067 | -10/Subcaves | Discovered new exit (range 10) 1198 | -10/Subcaves | Ambushed by angry Subdweller bent on revenge 1208 | -10/Subcaves | Discovered new exit (range 10) 1226 | -10/Subcaves | Learned Materials emergency access door positions 1460 | -10/Subcaves | A swath of the cavern ceiling suddenly collapsed 1535 | -10/Subcaves | Shifting Twisted Machinery released Sub. Power Source 1535 | -10/Subcaves | Shifting Twisted Machinery released Sub. Laser 1581 | -10/Subcaves | Scientist uncovered a shortcut to Scraptown 1725 | -10/Subcaves | Ambushed by angry Subdweller bent on revenge 1892 | -10/Subcaves | Learned location of Zion (-6) 1892 | -10/Subcaves | Met a Zionite searching for "candidates" 2005 | -10/Subcaves | Shifting Twisted Machinery released Mak. Shrapnel Gun 2023 | -10/Subcaves | Shifting Twisted Machinery released Battle Cannon 2024 | -10/Subcaves | Discovered new exit (range 11) 2642 | -10/Subcaves | Disturbed a concealed Subdweller 2973 | -10/Subcaves | Shifting Twisted Machinery released Battle Rifle 2979 | -10/Subcaves | Shifting Twisted Machinery released Scrap Shield 3181 | -10/Subcaves | Ambushed by Subdwellers from Twisted Machinery 3188 | -10/Subcaves | Core integrity fell below 50% 3205 | -10/Subcaves | Core integrity fell below 20% 3235 | -10/Subcaves | Lost 5 parts (1p2n1u1w) 3358 | -10/Subcaves | Visited Clippyterm 3362 | -10/Subcaves | Learned Factory trap positions 3887 | -10/Subcaves | Entered Materials 3887 | -8/Materials | Evolved 4 slots: Utility x1, Weapon x3 3888 | -8/Materials | Identified exit to Storage 4530 | -8/Materials | Repaired Gauss Rifle 4661 | -8/Materials | Entered Storage 4662 | -8/Storage | Build established: Gunner 5333 | -8/Storage | Garrison activated, responded to threat 5351 | -8/Storage | Found Prototype Launcher 5351 | -8/Storage | Identified Scatter Rocket Array 5364 | -8/Storage | Crushed by falling debris 5379 | -8/Storage | Core integrity fell below 50% 5403 | -8/Storage | Lost 4 parts (1n1u2w) 5526 | -8/Storage | Crushed by falling debris 5526 | -8/Storage | System corruption reached 10% 5560 | -8/Storage | Lost 3 parts (1p1u1w) 5702 | -8/Storage | Discovered new exit (range 16) 5931 | -8/Storage | Build established: Scavenger-Gunner 5960 | -8/Storage | Used back door to open Recycling access 5960 | -8/Storage | Discovered new exit (range 5) 6004 | -8/Storage | Core integrity fell below 20% 6207 | -8/Storage | Entered Factory 6207 | -7/Factory | Evolved 2 slots: Utility x2 6208 | -7/Factory | Loaded intel: 83 trap records 6607 | -7/Factory | First assault squad dispatched 6628 | -7/Factory | Identified exit to Lower Caves 6814 | -7/Factory | Garrison activated, responded to threat 7506 | -7/Factory | Cargo convoy interrupted 7531 | -7/Factory | Destroyed 10 combat bots 7538 | -7/Factory | Lost 5 parts (1n2u2w) 7595 | -7/Factory | Discovered new exit (range 7) 7598 | -7/Factory | Entered another Factory area 7598 | -6/Factory | Evolved 2 slots: Propulsion x2 7868 | -6/Factory | Discovered new exit (range 21) 7874 | -6/Factory | Entered another Factory area 7874 | -5/Factory | Evolved 2 slots: Power x1, Propulsion x1 8014 | -5/Factory | Fabricated G-50 Soldier? 8038 | -5/Factory | Discovered new exit (range 22) 8109 | -5/Factory | Identified exit to Upper Caves 8109 | -5/Factory | Identified exit to Extension 8130 | -5/Factory | Entered Upper Caves 8173 | -5/Upper Caves | Build established: Scout 8177 | -5/Upper Caves | Attracted the attention of an 0b10 checkpoint 8192 | -5/Upper Caves | Destroyed 9 combat bots 8233 | -5/Upper Caves | Discovered new exit (range 12) 8235 | -5/Upper Caves | Entered another Upper Caves area 8240 | -5/Upper Caves | Discovered new exit (range 9) 8253 | -5/Upper Caves | Learned Factory security intel 8272 | -5/Upper Caves | Acquired the password to a Derelict Tinkerer's latest research 8283 | -5/Upper Caves | Lost 3 parts (1p2w) 8355 | -5/Upper Caves | Spotted B-75 Beast 8360 | -5/Upper Caves | Discovered new exit (range 9) 8366 | -5/Upper Caves | Entered Warlord 8379 | -5/Warlord | System corruption cleaned by Quarantine Array 8446 | -5/Warlord | Learned 4 Quarantine zone layouts 8446 | -5/Warlord | Learned 4 Quarantine zone layouts 8447 | -5/Warlord | Learned Armory security intel 8447 | -5/Warlord | Learned Research security intel 8447 | -5/Warlord | Learned Factory fabricator intel 8488 | -5/Warlord | Met Warlord 8499 | -5/Warlord | Visited the Vortex Lab 8501 | -5/Warlord | Found Prototype Energy Cannon 8501 | -5/Warlord | Identified Vortex Driver 8506 | -5/Warlord | Found Vortex Driver 8513 | -5/Warlord | Warlord's base attacked by MAIN.C 8553 | -5/Warlord | Found Prototype Device 8553 | -5/Warlord | Identified Thermal Barrier 8559 | -5/Warlord | Found Prototype Device 8559 | -5/Warlord | Identified Exp. Phase Shifter 8598 | -5/Warlord | Opened side exit 8603 | -5/Warlord | Discovered new exit (range 9) 8604 | -5/Warlord | Entered Proximity Caves 8605 | -4/Proximity Caves | Learned Research terminal intel 8679 | -4/Proximity Caves | Discovered new exit (range 20) 8708 | -4/Proximity Caves | Entered Factory 8708 | -4/Factory | Evolved 2 slots: Propulsion x2 8710 | -4/Factory | Loaded intel: 6 fabricator locations 8795 | -4/Factory | Discovered new exit (range 11) 8798 | -4/Factory | Entered Upper Caves 8818 | -4/Upper Caves | Ambushed by wild Derelicts 8872 | -4/Upper Caves | Discovered new exit (range 3) 8877 | -4/Upper Caves | Learned location of Testing (-2) 8883 | -4/Upper Caves | Entered another Upper Caves area 8885 | -4/Upper Caves | Discovered new exit (range 6) 8909 | -4/Upper Caves | Learned location of Armory (-4) 8989 | -4/Upper Caves | Build established: Sprinter 9018 | -4/Upper Caves | Discovered new exit (range 5) 9019 | -4/Upper Caves | Entered Zhirov 9019 | -4/Zhirov | Discovered new exit (range 3) 9023 | -4/Zhirov | Met Zhirov 9028 | -4/Zhirov | Learned location of Quarantine (-3) 9028 | -4/Zhirov | Learned location of Command (-1) 9029 | -4/Zhirov | Zhirov requested help retrieving the SGEMP Prototype 9103 | -4/Zhirov | Found Alien Artifact 9107 | -4/Zhirov | Found Alien Artifact 9107 | -4/Zhirov | Identified Integrated Dissipator 9107 | -4/Zhirov | Installed Integrated Dissipator, increased core heat dissipation (+20) 9118 | -4/Zhirov | Entered Proximity Caves 9188 | -3/Proximity Caves | Discovered new exit (range 11) 9190 | -3/Proximity Caves | Entered Research 9190 | -3/Research | Evolved 2 slots: Utility x2 9192 | -3/Research | Loaded intel: 23 terminal locations 9285 | -3/Research | Repaired Scatter Rocket Array 9432 | -3/Research | Spotted B-86 Titan 9440 | -3/Research | Search patrols dispatched 9462 | -3/Research | Identified Transdimensional Reconstructor 9462 | -3/Research | Warped through subspace 9481 | -3/Research | Spotted B-86 Titan 9543 | -3/Research | Found Prototype Launcher 9543 | -3/Research | Identified Tesla Bomb Launcher 9551 | -3/Research | Found Fusion Bomb Launcher 9614 | -3/Research | Found Prototype Launcher 9614 | -3/Research | Identified Hellfire Missile Launcher 9620 | -3/Research | Found Prototype Processor 9620 | -3/Research | Identified Exp. Targeting Computer 9729 | -3/Research | Found Fusion Bomb Launcher 9878 | -3/Research | Destroyed 9 combat bots 9964 | -3/Research | Discovered new exit (range 3) 9964 | -3/Research | Identified exit to Research 9964 | -3/Research | Entered another Research area 9964 | -2/Research | Warlord forces began assault on 0b10 9964 | -2/Research | Evolved 2 slots: Propulsion x1, Utility x1 10064 | -2/Research | Fabricated Imp. VTOL Module (x1) 10074 | -2/Research | Research machine network offline 10142 | -2/Research | Discovered new exit (range 20) 10145 | -2/Research | Identified exit to Access 10158 | -2/Research | Spotted B-90 Cyclops 10158 | -2/Research | Spotted B-90 Cyclops 10179 | -2/Research | Discovered exit to Access (range 8) 10206 | -2/Research | Met up with Warlord 10209 | -2/Research | Discovered new exit (range 7) 10214 | -2/Research | Build established: Hacker-Ninja 10243 | -2/Research | Identified exit to Testing 10255 | -2/Research | Found Prototype Launcher 10255 | -2/Research | Identified Tactical Quantum Warhead 10261 | -2/Research | Found Tactical Quantum Warhead 10262 | -2/Research | Found Tactical Quantum Warhead 10275 | -2/Research | Found Prototype Reactor 10275 | -2/Research | Identified Zero-point Reactor 10291 | -2/Research | Found Prototype Launcher 10291 | -2/Research | Identified Mni. Smartbomb Launcher 10315 | -2/Research | Spotted Striker 10315 | -2/Research | Entered Testing 10358 | -2/Testing | Spotted PL-7JHHO87SS1 10387 | -2/Testing | Found Prototype Device 10387 | -2/Testing | Identified System Purifier 10390 | -2/Testing | Spotted Striker 10390 | -2/Testing | Spotted Striker 10391 | -2/Testing | Lost 3 parts (1n1u1w) 10403 | -2/Testing | Destroyed Striker 10403 | -2/Testing | Spotted Alpha 7 10414 | -2/Testing | Found Prototype Device 10414 | -2/Testing | Identified Exp. ECM Suite 10418 | -2/Testing | Found Exp. ECM Suite 10429 | -2/Testing | Stole the SGEMP Prototype 10441 | -2/Testing | Lost 4 parts (1n3u) 10446 | -2/Testing | Watched by a mysterious "MATRIX" hacker. 10553 | -2/Testing | Fabricated Exp. Transmission Jammer (x1) 10568 | -2/Testing | Found Prototype Protection 10568 | -2/Testing | Identified SHELL Armor 10621 | -2/Testing | Found Prototype Device 10621 | -2/Testing | Identified Exp. Hardlight Generator 10635 | -2/Testing | Found Prototype Energy Cannon 10635 | -2/Testing | Identified Cld. Nova Cannon 10643 | -2/Testing | Discovered exit to Access (range 8) 10649 | -2/Testing | Entered Access 10649 | -1/Access | Evolved 2 slots: Propulsion x1, Utility x1 10650 | -1/Access | Delivered the SGEMP Prototype to Zhirov 10650 | -1/Access | Zhirov transferred Access data 10651 | -1/Access | Loaded intel: 115 machine locations 10651 | -1/Access | Loaded intel: 120 trap records 10651 | -1/Access | Identified exit to Surface 10651 | -1/Access | Discovered exit to Surface (range 178) 10651 | -1/Access | Identified exit to Command 10651 | -1/Access | Discovered exit to Command (range 88) 10736 | -1/Access | Destroyed 12 combat bots 10867 | -1/Access | Spotted B-99 Colossus 10871 | -1/Access | Build established: Scout 10899 | -1/Access | First assault squad dispatched 10924 | -1/Access | Energy Cycler disabled 11135 | -1/Access | Found Prototype Device 11135 | -1/Access | Identified Exp. Shock Absorption System 11267 | *** | Escaped! Last Messages --------------- 11260_ U-05 Engineer lays Concrete. 11261_ Penetrated by Slug. 11261_ Kinetic Spear destroyed. 11261_ Penetrated by Slug. 11261_ Hellfire Missile Launcher destroyed. 11261_ Impulse Thruster Array+ destroyed. 11261_ Knocked back. 11262_ The unstable cave ceiling collapses. 11262_ U-05 Engineer lays Concrete. 11262_ Penetrated by Slug. 11262_ Slug penetrates Wall. 11262_ Impulse Thruster Array+ destroyed. 11263_ The unstable cave ceiling collapses. 11263_ Penetrated by Slug. 11263_ Electron Diverter destroyed. 11263_ Penetrated by Slug. 11263_ U-05 Engineer lays Concrete. 11264_ Penetrated by Slug. 11265_ Slug penetrates Reinforced Barrier. 11266_ U-05 Engineer builds a Wall. Map ----- +----------------------------------------------------+ | ###### ################ # " ########### | | ###### ###### # # ########### | | ###### ## # # # ########### | | ###### ## # # #################### " | | ## # "F "" # #################### | | ###### ## # """"" # #################### | | ###### ## # """"" + #################### | | ###### ## # # #################### | | ###### ## # # ####################### | | ###### ###+############ #################### | | ^^ ###### ################# | | ^^ ###### ################# | | ^^ ###### ################# " | | +######### ###### ################# " | | ### ##+###### ################# | | ### # #### #################! | | ### # #### ################# | | ! ### # ####""""""""""#################### | | + # ####""""""""""#################### | | ### # ####""""""""""################## | | ### #[ ####""""""""""########## ### | | ########## # #### ######## # | | ##### # #### ####### # = | | ! ##### # #### ###### # | | ##### ###+##### "" ### | | " ##### ### ##### "@ ### # | | "" ##### ### ##### ###" | | " #####+###+##### ### *! [ + | | #### ### # =! #### | | #### ### # [! % #### | | +###+#### " ## % ## | | ### """ ### " ## | | + """ ###"" # ## # | | #### ### " ###"" = ## # | | + ### ###T ## # | | + ### ###"" # ### # | | # ### ###"" ### # | | # ########+#####"" %# # # "### | | # u g ! % | | " H | | "#######+##+######### ## ######% | | ###### ######## !! ###### | | "##### ! ######## # !! ###### | | "##### ############ # % !! ###### | | ###### " ################ % ###### | | ###### """ ################ + | | ###"##### """ ################ ###### | | ######### " ################ ###### | | ######### ################ ###### | | ######### ################ ###### | +----------------------------------------------------+ Best States ------------- Heat Dissipation 115 Energy Generation 66 Energy Capacity 600 Matter Stores 350 Matter Capacity 450 Sight Range 23 Robot Scan Range 18 Terrain Scan Range 24 Terrain Scan Density 85 ECM Strength 6 Jamming Range 22 Cloak Strength 3 Power Amplification 40 Armor Coverage 900 Resistance: TH 50 Power Shielding 66 Propulsion Shielding 66 Phase Shifting 20 Evasion (%) 95 Targeting Accuracy 8 Melee Accuracy 5 Target Analysis 8 Core Analysis 9 Recoil Reduction 2 Salvage Targeting 2 Offensive Hacking 26 Defensive Hacking 14 Authchip Count 1 Item Schematics ----------------- Imp. VTOL Module | -5/Factory | Hacked Hyp. Railgun | -4/Factory | Hacked Assault Drone Bay | -4/Zhirov | Free Exp. Heat Sink | -4/Zhirov | Free Exp. Optical Array | -4/Zhirov | Free Imp. Arc Thrower | -4/Zhirov | Free Lgt. Regenerative Plating | -2/Testing | Hacked Robot Schematics ------------------ None Fabricated ------------ G-50 Soldier | x3 | -5/Factory | Preloaded Imp. VTOL Module | x1 | -2/Research Exp. Transmission Jammer | x1 | -2/Testing | Preloaded Repaired ---------- Gauss Rifle | 15% | -8/Materials Scatter Rocket Array | 14% | -3/Research Studied --------- Hpw. Shotgun | -5/Factory | Hacked Lgt. Angular Momentum Engine | -5/Factory | Hacked Q-thruster | -3/Research | Hacked Impulse Thruster | -3/Research | Hacked Fusion Bomb Launcher | -3/Research | Hacked Impulse Thruster Array | -2/Testing | Hacked Alien Tech Used ----------------- Integrated Dissipator Transdimensional Reconstructor Achievements -------------- This Is My Hole Challenges ------------ None Game ------ Seed GaussProcessingField Manual? 0 Play Time 02:12:51 Cumulative 1257.4 hours Start 2026.02.25 @ 16:43:02 End 2026.02.25 @ 20:53:03 Sessions 3 Manual Loads 0 Difficulty Rogue Special Mode None Game No. 1543 Rogue 1259 Adventurer 124 Explorer 160 Win Type 0 Total 61 Types 47/0/8/4/1/0/0/1/0/0 Lore% 93 Gallery% 83 Achievement% 68 Wizard Run 0 Options --------- Layout 0 ASCII 0 Keyboard 1 Movement Numpad Keybinds 0 Fullscreen 2 Font 18/X11 Map View 76x50 Zoom Use 0% Tactical HUD 1 Map Filters NONE Filters NONE Steam 1 RUN: ddf785dc-67a3-4d5b-a8e9-09ebc5c82def